bitfinex-derivatives/quotes_BTCF0:USTF0_20250127
["timestamp","ask_amount","ask_price","bid_price","bid_amount"]
[1737995158186,0.0078876,100710.0,100700.0,2.20137886]
[1737995158486,0.0078876,100710.0,100700.0,2.25267886]
[1737995158691,0.0078876,100710.0,100700.0,2.30287886]
[1737995159190,0.0078876,100710.0,100700.0,2.30587886]
[1737995159394,0.0088876,100710.0,100700.0,2.30587886]
[1737995159980,0.001,100710.0,100700.0,2.30587886]
[1737995160388,0.07298257,100720.0,100710.0,0.1986]
[1737995160691,0.07298257,100720.0,100710.0,0.69311137]
[1737995161487,0.43505243,100730.0,100710.0,0.50261137]
[1737995161788,0.43505243,100730.0,100720.0,0.61048]
[1737995161992,0.43505243,100730.0,100720.0,0.75229137]
[1737995162292,0.00014849,100730.0,100720.0,0.75229137]
[1737995163093,0.19870849,100730.0,100720.0,0.75229137]
[1737995163595,0.19970849,100730.0,100720.0,0.75529137]
[1737995164492,0.70231986,100730.0,100720.0,0.003]
[1737995164690,0.1986,100710.0,100700.0,0.63568449]
[1737995165087,0.21437363,100710.0,100700.0,0.72619586]
[1737995165290,0.1986,100710.0,100700.0,0.72619586]
[1737995165590,0.198585,100720.0,100710.0,0.1986]
[1737995165784,0.19971249,100730.0,100720.0,0.19858]
[1737995165982,0.00014849,100730.0,100720.0,0.75189137]
[1737995166188,0.19870849,100730.0,100720.0,0.75189137]
[1737995166386,0.19870849,100730.0,100720.0,0.61008]
[1737995166996,0.19870849,100730.0,100720.0,0.24928]
[1737995167293,0.19870849,100730.0,100720.0,0.61008]
[1737995167493,0.19970849,100730.0,100720.0,0.61308]
[1737995168087,0.00114849,100730.0,100720.0,0.75489137]
[1737995168797,0.19970849,100730.0,100720.0,0.75489137]
[1737995168987,0.00114849,100730.0,100720.0,0.75489137]
[1737995170591,0.00114849,100730.0,100720.0,2.39670274]
[1737995170781,0.86431341,100750.0,100740.0,0.19854]
[1737995170782,0.50351341,100750.0,100740.0,0.19854]
[1737995170986,0.50351341,100750.0,100740.0,0.70115137]
[1737995171186,0.30498541,100750.0,100740.0,1.06195137]
[1737995171387,0.26103652,100760.0,100750.0,0.198521]
[1737995171602,0.26103652,100760.0,100750.0,0.75173237]
[1737995171791,0.26103652,100760.0,100750.0,0.39093237]
[1737995171990,0.45953752,100760.0,100750.0,1.698521]
[1737995172396,0.62183652,100760.0,100740.0,0.56048449]
[1737995172592,0.559321,100750.0,100740.0,0.00114849]
[1737995172892,0.559321,100750.0,100740.0,0.00014849]
[1737995173094,0.246821,100750.0,100740.0,0.00014849]
[1737995173693,0.74943237,100750.0,100740.0,0.00014849]
[1737995173894,0.607621,100750.0,100740.0,0.00014849]
[1737995174199,0.199501,100760.0,100750.0,0.198521]
[1737995174396,0.199501,100760.0,100750.0,0.70113237]
[1737995174594,0.001,100760.0,100750.0,0.77819805]
[1737995174894,0.001,100760.0,100750.0,2.27819805]
[1737995175599,0.001,100760.0,100750.0,2.37669805]
[1737995175795,0.19863949,100770.0,100760.0,0.198501]
[1737995176200,0.198501,100760.0,100750.0,2.164817]
[1737995176890,0.198501,100760.0,100750.0,2.157817]
[1737995177091,0.198501,100760.0,100750.0,2.109817]
[1737995177287,0.00614849,100770.0,100760.0,0.198501]
[1737995177288,0.20463549,100770.0,100760.0,0.198501]
[1737995177491,0.00614849,100770.0,100760.0,0.77817805]
[1737995177697,0.00614849,100770.0,100760.0,0.82617805]
[1737995178387,0.19862949,100770.0,100760.0,0.559301]
[1737995178790,0.24742949,100770.0,100760.0,0.559301]
[1737995179190,0.25342949,100770.0,100760.0,0.560301]
[1737995179394,0.20462949,100770.0,100760.0,0.560301]
[1737995179598,0.56542949,100770.0,100760.0,0.001]
[1737995179887,0.20462949,100770.0,100760.0,0.199501]
[1737995180089,0.20462949,100770.0,100760.0,1.699501]
[1737995180299,0.20462949,100770.0,100760.0,2.060301]
[1737995180501,0.00614849,100770.0,100760.0,2.27917805]
[1737995181094,0.29016437,100790.0,100780.0,0.198462]
[1737995181299,0.29016437,100790.0,100780.0,0.77813905]
[1737995181802,0.29016437,100790.0,100780.0,1.13893905]
[1737995182101,0.29016437,100790.0,100780.0,1.18863905]
[1737995182307,0.29916437,100790.0,100780.0,1.18963905]
[1737995182999,0.490969,100800.0,100780.0,0.99117705]
[1737995183204,0.490969,100800.0,100790.0,0.77811905]
[1737995184191,0.03300011,100810.0,100800.0,0.198422]
[1737995184407,0.09144681,100830.0,100820.0,0.198383]
[1737995184603,0.09144681,100830.0,100820.0,1.13886005]
[1737995184899,0.26131494,100840.0,100820.0,0.94047705]
[1737995185105,0.26131494,100840.0,100830.0,0.77802305]
[1737995185293,0.26146343,100840.0,100830.0,0.77802305]
[1737995185499,0.45980743,100840.0,100830.0,0.198346]
[1737995186101,0.26146343,100840.0,100830.0,0.77802305]
[1737995186305,0.26146343,100840.0,100830.0,2.27802305]
[1737995186502,0.26146343,100840.0,100830.0,2.38812305]
[1737995187705,0.22401843,100840.0,100830.0,2.38812305]
[1737995188492,0.00014849,100840.0,100830.0,2.38812305]
[1737995191006,4.9e-07,100840.0,100830.0,2.39778585]
[1737995191202,4.9e-07,100840.0,100830.0,1.19778585]
[1737995191709,4.9e-07,100840.0,100830.0,2.69778585]
[1737995192406,0.298767,100880.0,100870.0,0.198285]
[1737995192712,0.1,100900.0,100890.0,0.198245]
[1737995193007,0.1,100900.0,100890.0,2.27792205]
[1737995194210,0.1,100900.0,100890.0,1.5]
[1737995194409,0.198245,100890.0,100880.0,0.55921049]
[1737995194707,0.559045,100890.0,100880.0,0.00014849]
[1737995194910,0.606445,100890.0,100880.0,0.00014849]
[1737995195315,0.198265,100880.0,100870.0,0.001]
[1737995195509,0.607265,100880.0,100870.0,0.001]
[1737995195705,0.198285,100870.0,100860.0,0.02626697]
[1737995195906,0.198285,100870.0,100860.0,0.19979097]
[1737995196707,0.198285,100870.0,100860.0,0.198304]
[1737995197108,0.198285,100870.0,100860.0,0.77798105]
[1737995197504,0.198285,100870.0,100860.0,0.559104]
[1737995198117,0.198285,100870.0,100860.0,0.568104]
[1737995198612,0.607185,100870.0,100860.0,0.009]
[1737995198803,0.198304,100860.0,100850.0,0.00014849]
[1737995199003,0.24639,100870.0,100850.0,0.21902554]
[1737995199202,0.24639,100870.0,100860.0,0.198304]
[1737995199414,0.198304,100860.0,100850.0,0.19846749]
[1737995200011,0.198304,100860.0,100850.0,0.20746749]
[1737995200407,0.559104,100860.0,100850.0,0.00914849]
[1737995200802,0.608704,100860.0,100850.0,0.00914849]
[1737995204419,0.75043778,100860.0,100850.0,0.00914849]
[1737995205207,1.05043778,100860.0,100850.0,4.9e-07]
[1737995205418,0.198363,100830.0,100820.0,1.5]
[1737995205618,0.559163,100830.0,100820.0,1.5]
[1737995206216,0.3608,100830.0,100810.0,0.559198]
[1737995206414,0.198383,100820.0,100810.0,0.55934649]
[1737995206612,0.198383,100820.0,100810.0,0.56943164]
[1737995206913,0.559183,100820.0,100810.0,0.00014849]
[1737995207109,0.249683,100820.0,100810.0,0.00014849]
[1737995207316,0.249683,100820.0,100810.0,0.19855149]
[1737995207516,0.198368,100830.0,100810.0,0.50268227]
[1737995207717,0.198368,100830.0,100820.0,0.70091678]
[1737995208318,0.198368,100830.0,100820.0,1.84011678]
[1737995208728,0.198368,100830.0,100820.0,2.20091678]
[1737995208919,0.24729449,100840.0,100830.0,0.198363]
[1737995209616,0.04894849,100840.0,100830.0,0.70089678]
[1737995209822,0.19849249,100840.0,100830.0,0.559163]
[1737995210019,0.19849249,100840.0,100830.0,0.198363]
[1737995210212,0.19949249,100840.0,100830.0,0.207363]
[1737995211521,0.19949249,100840.0,100830.0,0.34909678]
[1737995211824,0.00114849,100840.0,100830.0,0.70989678]
[1737995212727,0.00114849,100840.0,100830.0,0.75869678]
[1737995213527,0.001488,100860.0,100830.0,0.90043056]
[1737995213718,0.001488,100860.0,100850.0,1.06165778]
[1737995213924,0.247869,100880.0,100870.0,0.198285]
[1737995214230,0.198269,100880.0,100870.0,0.70081878]
[1737995214427,0.198285,100870.0,100860.0,0.198301]
[1737995214621,0.198304,100860.0,100850.0,1.698312]
[1737995214923,0.55209978,100880.0,100860.0,0.198304]
[1737995214924,0.248195,100870.0,100860.0,0.198304]
[1737995215127,0.248195,100870.0,100860.0,0.34003778]
[1737995215327,0.248195,100870.0,100860.0,0.559104]
[1737995216231,0.248195,100870.0,100860.0,0.198304]
[1737995216424,0.257195,100870.0,100860.0,0.560104]
[1737995216839,0.257195,100870.0,100860.0,0.001]
[1737995216840,0.617995,100870.0,100860.0,0.001]
[1737995217034,0.198304,100860.0,100850.0,0.00014849]
[1737995217241,0.198324,100850.0,100840.0,0.37217144]
[1737995217544,0.198324,100850.0,100840.0,0.71224922]
[1737995217942,0.302618,100860.0,100850.0,0.198324]
[1737995218335,0.4651,100860.0,100840.0,0.37231993]
[1737995218537,0.198324,100850.0,100840.0,0.57065893]
[1737995218734,0.198324,100850.0,100840.0,0.56077506]
[1737995218935,0.198324,100850.0,100840.0,0.36243606]
[1737995219538,0.198324,100850.0,100840.0,0.37143606]
[1737995219742,0.559124,100850.0,100840.0,0.01063606]
[1737995220039,0.198363,100830.0,100820.0,0.37413558]
[1737995220437,0.198327,100850.0,100840.0,0.198344]
[1737995220641,0.05278502,100860.0,100850.0,0.198324]
[1737995220951,0.00019703,100860.0,100850.0,0.70085778]
[1737995221143,0.00019703,100860.0,100850.0,0.80595778]
[1737995222843,0.00719703,100860.0,100850.0,0.80695778]
[1737995223450,0.00019703,100860.0,100850.0,0.80595778]
[1737995223753,0.00119703,100860.0,100850.0,0.80595778]
[1737995225144,0.00119703,100860.0,100850.0,0.81295778]
[1737995225844,0.00019703,100860.0,100850.0,2.30595778]
[1737995226246,0.00119703,100860.0,100850.0,2.31295778]
[1737995226447,0.00014849,100870.0,100860.0,0.198304]
[1737995226646,0.00014849,100870.0,100860.0,0.75263778]
[1737995227738,0.198249,100890.0,100880.0,0.19825]
[1737995227938,0.198249,100890.0,100880.0,0.33998378]
[1737995228245,0.29972041,100900.0,100890.0,0.11762128]
[1737995228447,0.29972041,100900.0,100890.0,0.62015506]
[1737995228652,0.29972041,100900.0,100890.0,0.47842128]
[1737995229148,0.198245,100890.0,100880.0,0.00114849]
[1737995229543,0.349945,100890.0,100880.0,0.00014849]
[1737995230253,0.85247878,100890.0,100880.0,0.00014849]
[1737995230548,0.198285,100870.0,100860.0,0.559104]
[1737995230951,0.198285,100870.0,100860.0,0.70083778]
[1737995231449,0.198272,100880.0,100870.0,0.19827]
[1737995231653,0.19842049,100880.0,100870.0,0.19827]
[1737995232041,0.19842049,100880.0,100870.0,0.34000378]
[1737995232246,0.00014849,100880.0,100870.0,0.70080378]
[1737995232547,0.20541349,100880.0,100870.0,0.001]
[1737995233145,0.20541349,100880.0,100870.0,0.70181878]
[1737995233351,0.20541349,100880.0,100870.0,0.001]
[1737995234150,0.56621349,100880.0,100870.0,0.001]
[1737995234349,0.198304,100860.0,100850.0,1.52492849]
[1737995234543,0.919904,100860.0,100850.0,0.02492849]
[1737995234851,0.049582,100850.0,100820.0,0.19303378]
[1737995235048,0.56368,100860.0,100840.0,0.14173378]
[1737995235251,0.660904,100860.0,100850.0,0.34005778]
[1737995235757,0.661904,100860.0,100850.0,0.34805778]
[1737995236163,0.660904,100860.0,100850.0,0.34005778]
[1737995236449,0.198324,100850.0,100840.0,1.90174327]
[1737995236660,0.198324,100850.0,100840.0,1.90122327]
[1737995236949,0.198324,100850.0,100840.0,0.20648949]
[1737995237151,0.559124,100850.0,100840.0,0.00814849]
[1737995237355,0.559124,100850.0,100840.0,1.53293849]
[1737995237759,0.198324,100850.0,100840.0,1.53293849]
[1737995237944,0.198324,100850.0,100840.0,1.73128249]
[1737995238351,0.198324,100850.0,100840.0,1.70649249]
[1737995238556,0.198324,100850.0,100840.0,1.50014849]
[1737995238756,0.198324,100850.0,100840.0,1.69849249]
[1737995238954,0.198324,100850.0,100840.0,1.84022627]
[1737995239255,0.199324,100850.0,100840.0,1.84722627]
[1737995239650,0.199324,100850.0,100840.0,2.20802627]
[1737995242256,0.001,100850.0,100840.0,2.20802627]
[1737995242454,0.001,100850.0,100840.0,0.90036005]
[1737995242652,0.199324,100850.0,100840.0,0.20549249]
[1737995242858,0.199324,100850.0,100840.0,1.84722627]
[1737995243360,0.560124,100850.0,100840.0,0.00714849]
[1737995243759,0.715624,100850.0,100840.0,0.00714849]
[1737995244358,0.715624,100850.0,100820.0,0.460995]
[1737995244359,0.198383,100820.0,100810.0,1.19141357]
[1737995244564,0.198383,100820.0,100810.0,0.56067979]
[1737995244764,0.198383,100820.0,100810.0,0.70241357]
[1737995244962,0.198383,100820.0,100810.0,2.20241357]
[1737995245261,0.198383,100820.0,100810.0,2.06067979]
[1737995245459,0.198383,100820.0,100810.0,1.50148779]
[1737995245660,0.608683,100820.0,100810.0,1.50148779]
[1737995245963,0.711883,100820.0,100810.0,1.50848779]
[1737995246158,0.711883,100820.0,100790.0,0.70096878]
[1737995246159,0.198422,100800.0,100790.0,0.70096878]
[1737995246365,0.198422,100800.0,100790.0,0.71097831]
[1737995246667,0.198422,100800.0,100790.0,0.37080953]
[1737995246960,0.198422,100800.0,100790.0,0.3608]
[1737995247167,0.198442,100790.0,100780.0,2.25158278]
[1737995247361,0.198442,100790.0,100780.0,2.25098278]
[1737995247662,0.198442,100790.0,100780.0,1.748449]
[1737995248855,0.199442,100790.0,100780.0,1.748449]
[1737995249856,0.199442,100790.0,100780.0,1.75829602]
[1737995250163,0.199442,100790.0,100780.0,1.78309602]
[1737995250560,0.3618,100790.0,100760.0,0.24303378]
[1737995250757,0.559281,100770.0,100760.0,0.0535]
[1737995250960,0.198501,100760.0,100750.0,0.34025478]
[1737995251165,0.198521,100750.0,100740.0,0.72570585]
[1737995251361,0.198521,100750.0,100740.0,0.50663963]
[1737995251555,0.19865249,100760.0,100750.0,0.198517]
[1737995251757,0.00014849,100760.0,100750.0,0.70105078]
[1737995252759,0.00114849,100760.0,100750.0,0.70105078]
[1737995252961,0.19993392,100790.0,100780.0,0.198462]
[1737995253563,0.198462,100780.0,100770.0,0.559278]
[1737995253756,0.198462,100780.0,100770.0,0.198478]
[1737995254156,0.198462,100780.0,100770.0,1.698478]
[1737995254863,0.198462,100780.0,100770.0,1.5]
[1737995255170,0.198481,100770.0,100760.0,0.55944249]
[1737995255661,0.559281,100770.0,100760.0,1.50014849]
[1737995255867,0.559281,100770.0,100760.0,0.00014849]
[1737995256162,0.559281,100770.0,100760.0,0.19864949]
[1737995256758,0.198481,100770.0,100760.0,0.19864949]
[1737995256955,0.559281,100770.0,100760.0,0.19864949]
[1737995257159,0.559281,100770.0,100760.0,0.00014849]
[1737995257358,0.70101478,100770.0,100760.0,0.00014849]
[1737995257560,0.55453378,100770.0,100740.0,0.61432028]
[1737995257861,0.559321,100750.0,100740.0,0.00148828]
[1737995258063,0.559321,100750.0,100740.0,0.01141281]
[1737995258362,0.198521,100750.0,100740.0,0.20995281]
[1737995258564,0.198521,100750.0,100740.0,0.71248659]
[1737995259363,0.55945249,100760.0,100750.0,0.198521]
[1737995259559,0.198521,100750.0,100740.0,0.20995081]
[1737995259765,0.34025478,100750.0,100740.0,0.00148828]
[1737995259960,0.19854,100740.0,100730.0,0.559358]
[1737995260365,0.20248164,100740.0,100730.0,0.23918853]
[1737995261565,0.20248164,100740.0,100730.0,0.59998853]
[1737995261873,0.20348164,100740.0,100730.0,0.59998853]
[1737995262469,0.56428164,100740.0,100730.0,0.22946031]
[1737995262662,0.70601542,100740.0,100730.0,0.03090231]
[1737995263370,0.75761542,100740.0,100730.0,0.03090231]
[1737995263566,0.61588164,100740.0,100730.0,0.03090231]
[1737995264370,0.61588164,100740.0,100730.0,0.22946231]
[1737995264569,0.20348164,100740.0,100730.0,0.03090231]
[1737995264769,0.75661542,100740.0,100730.0,0.03090231]
[1737995265269,0.25408164,100740.0,100730.0,0.22946231]
[1737995265572,0.75661542,100740.0,100730.0,0.03090231]
[1737995267776,0.61488164,100740.0,100730.0,0.03090231]
[1737995269078,0.75661542,100740.0,100730.0,0.03090231]
[1737995269380,0.19858,100720.0,100710.0,0.74724095]
[1737995269580,0.19858,100720.0,100710.0,2.24724095]
[1737995269779,0.21829176,100720.0,100710.0,1.75800095]
[1737995270174,0.21829176,100720.0,100710.0,1.89973473]
[1737995270375,0.21829176,100720.0,100710.0,2.26053473]
[1737995270568,0.21829176,100720.0,100710.0,1.89973473]
[1737995270975,0.21829176,100720.0,100710.0,1.75800095]
[1737995271182,0.21929176,100720.0,100710.0,1.75800095]
[1737995271669,0.21829176,100720.0,100710.0,1.75800095]
[1737995271870,0.21929176,100720.0,100710.0,1.75800095]
[1737995272570,0.21929176,100720.0,100710.0,2.11880095]
[1737995273074,0.21929176,100720.0,100710.0,1.75800095]
[1737995273283,0.21929176,100720.0,100710.0,2.11880095]
[1737995274586,0.21929176,100720.0,100710.0,2.21354604]
[1737995275879,0.02071176,100720.0,100710.0,2.30829113]
[1737995276087,0.21929176,100720.0,100710.0,1.85274604]
[1737995276278,0.21929176,100720.0,100710.0,2.21354604]
[1737995276984,0.21929176,100720.0,100710.0,1.85274604]
[1737995277175,0.58009176,100720.0,100710.0,1.55940695]
[1737995277380,0.67483685,100720.0,100710.0,1.5]
[1737995277581,0.67483685,100720.0,100700.0,0.76410334]
[1737995277582,0.1986,100710.0,100700.0,0.49804843]
[1737995277780,0.65414509,100710.0,100700.0,0.10148934]
[1737995277979,0.198639,100690.0,100680.0,0.17660612]
[1737995278179,0.920239,100690.0,100680.0,0.17660612]
[1737995278387,1.05047575,100690.0,100680.0,0.17660612]
[1737995278986,0.95573066,100690.0,100680.0,0.17660612]
[1737995279590,0.95673066,100690.0,100680.0,0.17660612]
[1737995279789,0.59593066,100690.0,100680.0,0.27135121]
[1737995279995,0.23513066,100690.0,100680.0,0.83081021]
[1737995280183,0.03649166,100690.0,100680.0,0.83081021]
[1737995280388,0.001,100690.0,100680.0,0.83081021]
[1737995280591,0.001,100690.0,100680.0,0.51743599]
[1737995281093,0.6077599,100690.0,100680.0,0.37526512]
[1737995281293,0.198659,100680.0,100670.0,0.22988407]
[1737995281489,0.50297087,100680.0,100660.0,0.07883]
[1737995281687,0.50297087,100680.0,100660.0,1.5]
[1737995281688,0.559478,100670.0,100660.0,1.5]
[1737995281891,0.198678,100670.0,100660.0,1.7280795]
[1737995282092,0.25389276,100670.0,100660.0,1.7280795]
[1737995282998,0.61469276,100670.0,100660.0,1.7280795]
[1737995283298,0.61569276,100670.0,100660.0,1.5293815]
[1737995283492,0.61569276,100670.0,100660.0,0.0293815]
[1737995283897,0.61569276,100670.0,100660.0,0.2280795]
[1737995284197,0.25489276,100670.0,100660.0,0.2280795]
[1737995284391,0.25489276,100670.0,100660.0,0.37025037]
[1737995285089,0.05621476,100670.0,100660.0,0.37025037]
[1737995285300,0.001,100670.0,100660.0,0.78465037]
[1737995285704,0.00014849,100680.0,100670.0,0.198678]
[1737995285996,0.00014849,100680.0,100670.0,0.83243037]
[1737995286393,0.36229013,100720.0,100690.0,0.049659]
[1737995286698,0.56087713,100720.0,100710.0,0.2279815]
[1737995286903,0.20007713,100720.0,100710.0,0.37015237]
[1737995287195,0.23161813,100720.0,100710.0,0.37015237]
[1737995287405,0.23161813,100720.0,100710.0,0.2279815]
[1737995287693,0.59241813,100720.0,100710.0,0.0293815]
[1737995288298,0.1986,100710.0,100700.0,0.00014849]
[1737995288498,0.6103,100710.0,100700.0,0.00014849]
[1737995288697,0.5594,100710.0,100700.0,0.14231936]
[1737995288899,0.031541,100710.0,100700.0,0.70173836]
[1737995289300,0.20107613,100720.0,100710.0,0.1986]
[1737995289500,0.20107613,100720.0,100710.0,0.34077087]
[1737995289698,0.22867313,100720.0,100710.0,0.80587087]
[1737995289899,0.22867313,100720.0,100710.0,0.85727087]
[1737995290901,0.03008713,100720.0,100710.0,0.85727087]
[1737995291106,0.22866713,100720.0,100710.0,0.85727087]
[1737995291303,0.22766713,100720.0,100710.0,0.85727087]
[1737995291503,0.22766713,100720.0,100710.0,0.1043]
[1737995292007,0.22866713,100720.0,100710.0,0.3029]
[1737995292703,0.03008713,100720.0,100700.0,0.70172936]
[1737995293103,0.1986,100710.0,100700.0,0.55955849]
[1737995293806,0.00249013,100720.0,100710.0,0.1986]
[1737995293997,0.00249013,100720.0,100710.0,0.5594]
[1737995294204,0.00249013,100720.0,100710.0,0.70157087]
[1737995296002,0.001,100720.0,100710.0,0.70157087]
[1737995297704,0.001,100720.0,100710.0,0.72639087]
[1737995298204,0.001,100720.0,100710.0,0.73619374]
[1737995298402,0.00014849,100730.0,100710.0,0.67976461]
[1737995298597,0.00014849,100730.0,100720.0,0.85955087]
[1737995300206,0.00998442,100750.0,100720.0,0.80314174]
[1737995300400,0.559306,100760.0,100750.0,0.198521]
[1737995300599,0.198506,100760.0,100750.0,0.70149187]
[1737995300998,0.19998549,100770.0,100760.0,0.198501]
[1737995301204,0.19998549,100770.0,100760.0,0.34067187]
[1737995302112,0.198501,100760.0,100750.0,1.84135736]
[1737995302313,0.198501,100760.0,100750.0,0.14231936]
[1737995302503,0.198501,100760.0,100750.0,0.00014849]
[1737995302915,0.559301,100760.0,100750.0,0.00014849]
[1737995303306,0.198501,100760.0,100750.0,0.14231936]
[1737995303611,0.198501,100760.0,100750.0,0.34084036]
[1737995304512,0.568301,100760.0,100750.0,0.00014849]
[1737995305109,0.71047187,100760.0,100750.0,0.00014849]
[1737995305513,0.568301,100760.0,100750.0,0.00014849]
[1737995305818,0.71047187,100760.0,100750.0,0.00014849]
[1737995306215,0.568301,100760.0,100750.0,0.00014849]
[1737995307715,0.568301,100760.0,100750.0,0.14231936]
[1737995307901,0.207501,100760.0,100750.0,0.70164036]
[1737995308099,0.207501,100760.0,100750.0,2.20164036]
[1737995308610,0.009,100760.0,100750.0,2.20164036]
[1737995308811,0.009,100760.0,100750.0,2.35544036]
[1737995309008,0.207501,100760.0,100750.0,2.35544036]
[1737995309409,0.009,100760.0,100750.0,2.35544036]
[1737995310508,0.19997949,100770.0,100760.0,0.34067187]
[1737995310712,0.19997949,100770.0,100760.0,0.70147187]
[1737995312506,0.20097949,100770.0,100760.0,0.70147187]
[1737995312707,0.00248949,100770.0,100760.0,0.70147187]
[1737995312912,0.00014849,100780.0,100770.0,0.198481]
[1737995313214,0.00014849,100780.0,100770.0,0.70145187]
[1737995313814,0.00014849,100780.0,100770.0,2.20145187]
[1737995314408,0.00014849,100780.0,100770.0,2.20745187]
[1737995314409,0.00114849,100780.0,100770.0,2.20745187]
[1737995315303,0.00014849,100780.0,100770.0,2.20145187]
[1737995315506,0.29992186,100800.0,100770.0,2.00997087]
[1737995315706,0.10148886,100800.0,100790.0,0.70141287]
[1737995315908,0.1,100800.0,100790.0,0.70141287]
[1737995316313,0.252208,100810.0,100790.0,0.70141287]
[1737995316314,0.198408,100810.0,100790.0,0.64514174]
[1737995316509,0.198408,100810.0,100800.0,0.84356374]
[1737995316707,0.19855649,100810.0,100800.0,0.84356374]
[1737995317815,0.00014849,100810.0,100800.0,0.84356374]
[1737995318204,0.00914849,100810.0,100800.0,0.84456374]
[1737995319010,0.38243365,100830.0,100820.0,0.198383]
[1737995319209,0.38243365,100830.0,100820.0,2.20135387]
[1737995319417,0.19983445,100840.0,100830.0,0.198363]
[1737995319713,0.19983445,100840.0,100830.0,0.34053387]
[1737995320510,0.198363,100830.0,100820.0,2.20205536]
[1737995320711,0.559163,100830.0,100820.0,0.00014849]
[1737995320911,0.609263,100830.0,100820.0,0.00014849]
[1737995321313,0.618263,100830.0,100820.0,0.00114849]
[1737995321821,0.615263,100830.0,100820.0,0.14231936]
[1737995322117,0.615263,100830.0,100820.0,0.34070236]
[1737995322410,0.254463,100830.0,100820.0,0.34070236]
[1737995322617,0.254463,100830.0,100820.0,0.00014849]
[1737995322915,0.667463,100830.0,100820.0,0.00014849]
[1737995323318,0.80963387,100830.0,100820.0,0.00014849]
[1737995323516,0.198422,100800.0,100790.0,0.80609098]
[1737995324310,0.198422,100800.0,100790.0,0.39209098]
[1737995324516,0.198422,100800.0,100790.0,0.75289098]
[1737995324709,0.198422,100800.0,100790.0,0.70289098]
[1737995325111,0.199422,100800.0,100790.0,0.71189098]
[1737995325312,0.190922,100800.0,100790.0,0.71189098]
[1737995325715,0.190922,100800.0,100790.0,0.72190294]
[1737995327224,0.190922,100800.0,100790.0,0.15265898]
[1737995327410,0.190922,100800.0,100780.0,1.69860749]
[1737995327411,0.4697,100800.0,100780.0,1.69860749]
[1737995327724,0.559242,100790.0,100780.0,0.00014849]
[1737995328017,0.256128,100800.0,100790.0,0.198442]
[1737995328220,0.001,100800.0,100790.0,0.71041287]
[1737995328724,0.198422,100800.0,100790.0,0.70141287]
[1737995329027,0.25355549,100810.0,100800.0,0.198422]
[1737995329222,0.25355549,100810.0,100800.0,0.34059287]
[1737995330320,0.25355549,100810.0,100800.0,0.70139287]
[1737995330623,0.00014849,100810.0,100800.0,0.70139287]
[1737995330824,0.19855149,100810.0,100800.0,0.80859287]
[1737995331220,0.19855149,100810.0,100800.0,0.70139287]
[1737995331620,0.00014849,100810.0,100800.0,0.70139287]
[1737995331822,0.19855149,100810.0,100800.0,0.70139287]
[1737995332226,0.19955149,100810.0,100800.0,0.71039287]
[1737995333622,0.19955149,100810.0,100800.0,2.22040449]
[1737995333923,0.19955149,100810.0,100800.0,1.71743362]
[1737995334118,0.19955149,100810.0,100800.0,0.207422]
[1737995335031,0.19955149,100810.0,100800.0,0.34959287]
[1737995336125,0.19955149,100810.0,100800.0,0.207422]
[1737995336430,0.19955149,100810.0,100800.0,0.009]
[1737995337324,0.19955149,100810.0,100800.0,0.34959287]
[1737995337719,0.19955149,100810.0,100800.0,0.207422]
[1737995338024,0.19955149,100810.0,100800.0,0.009]
[1737995338426,0.70252236,100810.0,100800.0,0.009]
[1737995338929,0.34061287,100790.0,100780.0,0.00014849]
[1737995339230,0.70141287,100790.0,100780.0,0.00014849]
[1737995339433,0.80971287,100790.0,100780.0,0.00014849]
[1737995339938,0.198481,100770.0,100760.0,0.56932509]
[1737995340230,0.198481,100770.0,100760.0,2.06932509]
[1737995340426,0.198481,100770.0,100760.0,2.21149596]
[1737995341133,0.198481,100770.0,100760.0,2.06932509]
[1737995341330,0.00014849,100780.0,100760.0,2.01299896]
[1737995341532,0.00014849,100780.0,100770.0,0.70145187]
[1737995341720,0.198481,100770.0,100760.0,2.22105196]
[1737995341926,0.198481,100770.0,100760.0,2.22049196]
[1737995342824,0.198481,100770.0,100760.0,2.07832109]
[1737995343423,0.198481,100770.0,100760.0,1.70852109]
[1737995344227,0.199481,100770.0,100760.0,1.51902809]
[1737995344427,0.199481,100770.0,100760.0,2.22049996]
[1737995345028,0.199481,100770.0,100760.0,1.85969996]
[1737995345329,0.199481,100770.0,100760.0,0.35969996]
[1737995345521,0.199481,100770.0,100760.0,0.21752909]
[1737995345729,0.199481,100770.0,100760.0,1.51902809]
[1737995345929,0.252381,100770.0,100760.0,1.51902809]
[1737995346236,0.252381,100770.0,100760.0,1.71752909]
[1737995346935,0.252381,100770.0,100760.0,1.85969996]
[1737995347732,0.252381,100770.0,100760.0,2.22049996]
[1737995347926,0.199481,100770.0,100760.0,1.85969996]
[1737995348245,0.001,100770.0,100760.0,2.22049996]
[1737995349531,0.199481,100770.0,100760.0,1.71752909]
[1737995351332,0.199481,100770.0,100760.0,2.07832909]
[1737995351538,0.199481,100770.0,100760.0,1.85969996]
[1737995351936,0.199481,100770.0,100760.0,2.22049996]
[1737995352239,0.001,100770.0,100760.0,2.22049996]
[1737995352537,0.001,100770.0,100760.0,0.72049996]
[1737995352930,0.001,100770.0,100760.0,2.36267083]
[1737995353125,0.001,100770.0,100760.0,2.22049996]
[1737995354130,0.00014849,100780.0,100770.0,0.34065187]
[1737995354439,0.00014849,100780.0,100770.0,0.75425187]
[1737995355229,0.19861049,100780.0,100770.0,0.75425187]
[1737995355428,0.19861049,100780.0,100770.0,0.612081]
[1737995356038,0.19861049,100780.0,100770.0,0.251281]
[1737995356234,0.56041049,100780.0,100770.0,0.260281]
[1737995356433,0.19961049,100780.0,100770.0,0.260281]
[1737995356742,0.56041049,100780.0,100770.0,0.009]
[1737995356934,0.19961049,100780.0,100770.0,0.009]
[1737995357440,0.19961049,100780.0,100770.0,0.207481]
[1737995357637,0.19961049,100780.0,100770.0,0.34965187]
[1737995358340,0.19961049,100780.0,100770.0,0.207481]
[1737995358530,0.56041049,100780.0,100770.0,0.207481]
[1737995358732,0.19961049,100780.0,100770.0,0.207481]
[1737995359032,0.00114849,100780.0,100770.0,0.71045187]
[1737995360031,0.24896206,100790.0,100780.0,0.198462]
[1737995360231,0.10908865,100820.0,100810.0,0.198403]
[1737995360232,0.00148865,100820.0,100810.0,0.198403]
[1737995360433,0.19822843,100830.0,100820.0,0.198383]
[1737995360633,0.19822843,100830.0,100820.0,0.70135387]
[1737995360833,0.12370869,100860.0,100850.0,0.198324]